bitfinex/quotes_ETHUSD_20240612
["timestamp","ask_amount","ask_price","bid_price","bid_amount"]
[1718202742090,2.75277,3632.7,3632.5,11.8271]
[1718202742252,4.43344514,3632.6,3632.5,11.8271]
[1718202742747,4.43344514,3632.6,3632.5,5.5058]
[1718202743368,3.0,3632.6,3632.5,6.05638]
[1718202743568,3.0,3632.6,3632.5,12.43538]
[1718202743884,3.0,3632.9,3632.5,12.43538]
[1718202744052,1.43344514,3632.8,3632.5,12.43538]
[1718202747206,4.18616514,3632.8,3632.5,11.8848]
[1718202747385,3.0,3632.7,3632.5,11.8848]
[1718202747688,4.43344514,3632.7,3632.5,11.8848]
[1718202748006,4.18628514,3632.6,3632.5,5.5058]
[1718202749904,3.0,3632.7,3632.5,5.5058]
[1718202750073,1.43344514,3632.7,3632.5,6.73466]
[1718202750903,4.18628514,3632.6,3632.5,6.73466]
[1718202751263,4.18628514,3632.6,3632.5,5.5058]
[1718202753665,3.0,3632.8,3632.5,5.5058]
[1718202753902,1.43344514,3632.8,3632.5,5.5058]
[1718202754193,3.0,3633.1,3632.6,0.05505148]
[1718202754398,1.43344514,3633.0,3632.7,6.06158515]
[1718202757009,3.0,3633.1,3632.8,0.05504861]
[1718202757303,1.43344514,3633.1,3632.9,12.398]
[1718202758962,1.43344514,3633.0,3632.9,5.5052]
[1718202759203,4.18598514,3633.0,3632.9,5.5052]
[1718202763411,3.0,3633.2,3632.9,5.5052]
[1718202763618,1.43344514,3633.1,3632.9,5.5052]
[1718202764507,3.0,3633.2,3632.9,5.5052]
[1718202764716,4.43344514,3633.2,3632.9,5.5052]
[1718202765017,4.18591514,3633.1,3632.9,5.5052]
[1718202768824,3.0,3633.2,3632.9,11.9685]
[1718202769027,3.0,3633.4,3633.0,0.05504473]
[1718202769190,1.43344514,3633.3,3633.1,5.5049]
[1718202769393,2.75239,3633.2,3633.1,5.5049]
[1718202769591,7.18583514,3633.2,3633.1,5.5049]
[1718202770125,3.0,3633.2,3633.1,5.5049]
[1718202770427,3.0,3633.4,3633.1,5.5049]
[1718202770731,1.43344514,3633.3,3633.1,5.5049]
[1718202771288,2.7522,3633.5,3633.2,6.993]
[1718202771494,8.81151804,3633.8,3633.2,6.993]
[1718202771495,10.49,3633.8,3633.3,5.5046]
[1718202771795,8.92344514,3633.8,3633.3,5.5046]
[1718202772556,8.92344514,3633.8,3633.3,8.25691]
[1718202773358,3.0,3633.7,3633.3,5.5046]
[1718202773494,2.7521,3633.6,3633.3,5.5046]
[1718202773691,1.43344514,3633.5,3633.3,5.5046]
[1718202774835,3.0,3633.7,3633.3,5.5046]
[1718202774991,2.7518,3634.0,3633.3,6.75436]
[1718202775195,4.43344514,3633.9,3633.3,5.5046]
[1718202775992,2.7521,3633.6,3633.3,5.5046]
[1718202776202,4.18554514,3633.6,3633.3,5.5046]
[1718202777817,2.75224,3633.4,3633.3,5.5046]
[1718202777998,4.18568514,3633.4,3633.3,5.5046]
[1718202779810,2.75204,3633.7,3633.3,5.5046]
[1718202780015,4.43344514,3633.6,3633.3,5.5046]
[1718202780226,2.75216,3633.5,3633.3,5.5046]
[1718202780516,4.18560514,3633.5,3633.3,5.5046]
[1718202782012,1.43344514,3633.4,3633.3,5.5046]
[1718202784547,2.75216,3633.5,3633.3,12.1257]
[1718202784919,2.752,3633.8,3633.4,0.05503996]
[1718202785117,2.752,3633.8,3633.5,5.55933708]
[1718202786323,3.0,3634.3,3633.5,5.55933708]
[1718202786324,2.75178,3634.1,3633.5,5.55933708]
[1718202786526,4.43344514,3634.0,3633.5,5.55933708]
[1718202786725,4.43344514,3634.0,3633.5,7.05260879]
[1718202787751,3.0,3634.0,3633.5,9.80476879]
[1718202788053,3.0,3634.0,3633.5,6.99757171]
[1718202788955,2.75209,3633.6,3633.5,5.5043]
[1718202789156,4.18553514,3633.6,3633.5,5.5043]
[1718202789656,3.0,3634.0,3633.5,5.5043]
[1718202789832,1.43344514,3634.0,3633.5,5.5043]
[1718202790643,1.43344514,3633.9,3633.5,5.5043]
[1718202790847,2.75203,3633.7,3633.5,5.5043]
[1718202791052,1.43344514,3633.6,3633.5,5.5043]
[1718202791256,4.43344514,3633.6,3633.5,5.5043]
[1718202791659,2.75203,3633.7,3633.5,5.5043]
[1718202791660,2.75203,3633.7,3633.6,6.6607]
[1718202791961,2.75184,3634.0,3633.6,12.1649]
[1718202792162,4.18528514,3634.0,3633.7,0.0550335]
[1718202792361,4.18528514,3634.0,3633.8,5.5039]
[1718202793920,2.75159,3634.3,3633.8,5.5039]
[1718202794121,4.43344514,3634.2,3633.9,0.05503035]
[1718202794359,4.43344514,3634.2,3634.0,5.5036]
[1718202794863,2.75159,3634.3,3634.0,5.5036]
[1718202795160,4.18503514,3634.3,3634.1,0.55036]
[1718202795372,4.18503514,3634.3,3634.2,5.5033]
[1718202795739,2.75136,3634.6,3634.2,5.5033]
[1718202795944,1.43344514,3634.5,3634.3,0.0550253]
[1718202796238,4.43344514,3634.5,3634.4,5.503]
[1718202798167,3.0,3634.5,3634.4,5.503]
[1718202804262,0.2753,3634.7,3634.4,5.503]
[1718202804464,0.2753,3634.7,3634.5,0.05502162]
[1718202805374,1.70874514,3634.7,3634.6,5.5027]
[1718202805534,0.2753,3634.7,3634.6,5.5027]
[1718202807336,0.2753,3634.7,3634.6,6.05297]
[1718202807533,0.2753,3634.7,3634.6,12.44767]
[1718202807780,10.24091,3635.2,3634.6,12.44767]
[1718202808072,1.43344514,3635.2,3634.7,0.05501663]
[1718202808234,1.43344514,3635.2,3634.8,6.80768427]
[1718202809069,3.0,3635.4,3634.8,6.80768427]
[1718202809372,1.43344514,3635.4,3634.8,6.80768427]
[1718202810636,2.75044,3635.8,3634.8,6.80768427]
[1718202810887,1.43344514,3635.7,3634.8,6.80768427]
[1718202811050,1.43344514,3635.7,3634.9,1.65039543]
[1718202811250,4.43344514,3635.7,3635.0,5.55710954]
[1718202811574,4.43344514,3635.7,3635.1,6.9474]
[1718202811737,4.43344514,3635.7,3635.2,5.55680788]
[1718202811939,4.43344514,3635.7,3635.3,0.05500788]
[1718202812155,4.43344514,3635.7,3635.4,6.75192079]
[1718202812553,4.43344514,3635.7,3635.5,0.05500789]
[1718202812554,3.0,3635.7,3635.5,0.05500789]
[1718202812753,3.0,3636.0,3635.6,5.5012]
[1718202812972,1.43344514,3635.9,3635.7,0.05500434]
[1718202813180,1.43344514,3635.9,3635.8,5.5009]
[1718202813344,2.74998,3636.4,3635.8,5.5009]
[1718202813547,1.43344514,3636.3,3635.9,0.05499928]
[1718202813847,1.43344514,3636.3,3636.0,5.5006]
[1718202814159,4.43344514,3636.3,3636.0,5.5006]
[1718202816950,2.74998,3636.4,3636.1,0.05499939]
[1718202817320,2.74977,3636.7,3636.2,6.05575994]
[1718202817598,1.43344514,3636.6,3636.3,0.05499449]
[1718202817904,1.43344514,3636.6,3636.4,5.4999]
[1718202818046,4.43344514,3636.6,3636.4,5.4999]
[1718202821776,1.43344514,3636.6,3636.4,5.4999]
[1718202822355,2.74989,3636.5,3636.4,5.4999]
[1718202822547,4.18333514,3636.5,3636.4,5.4999]
[1718202823486,4.18333514,3636.5,3636.4,6.04989]
[1718202823681,2.7497,3636.8,3636.4,6.04989]
[1718202823869,1.43344514,3636.7,3636.4,6.04989]
[1718202824058,1.43344514,3636.7,3636.4,13.08549]
[1718202824261,1.43344514,3636.7,3636.5,1.308549]
[1718202824581,1.43344514,3636.7,3636.6,5.4996]
[1718202825184,2.74947,3637.1,3636.6,5.4996]
[1718202825358,1.43344514,3637.0,3636.7,0.05403406]
[1718202825682,1.43344514,3637.0,3636.8,5.4993]
[1718202826280,1.43344514,3637.0,3636.9,0.817]
[1718202826581,6.6495,3638.2,3637.0,6.8934]
[1718202826755,6.6495,3638.2,3637.1,6.3159]
[1718202826756,1.43344514,3638.1,3637.1,6.3159]
[1718202827083,1.43344514,3638.1,3637.1,7.71307849]
[1718202827277,1.43344514,3638.1,3637.1,6.89607849]
[1718202828193,2.74886,3637.9,3637.1,6.89607849]
[1718202828394,4.43344514,3637.8,3637.2,0.054977]
[1718202828551,4.43344514,3637.8,3637.3,5.4986]
[1718202828883,4.43344514,3637.8,3637.4,0.68957785]
[1718202829070,4.43344514,3637.8,3637.5,5.4983]
[1718202829273,4.43344514,3637.8,3637.6,6.8315]
[1718202829599,2.74858,3638.3,3637.7,5.498]
[1718202829745,4.18202514,3638.3,3637.7,5.498]
[1718202832470,1.43344514,3638.6,3637.9,5.4977]
[1718202832863,1.43344514,3638.6,3638.0,0.0549661]
[1718202833066,1.43344514,3638.6,3638.1,6.05266661]
[1718202833266,2.74725,3640.0,3638.5,1.959]
[1718202833465,2.74725,3640.0,3639.0,2.74798]
[1718202833699,6.7125,3642.1,3639.7,9.34707]
[1718202833998,2.85450387,3641.5,3639.7,15.82601749]
[1718202834166,1.33143411,3639.8,3639.7,17.40861924]
[1718202834497,5.60067387,3641.5,3640.3,2.74702]
[1718202834699,2.74635,3641.2,3640.4,5.4939]
[1718202834907,2.74686,3640.6,3640.4,5.4939]
[1718202835411,2.60116664,3641.3,3640.4,5.4939]
[1718202835412,0.95016664,3641.3,3640.4,5.4939]
[1718202835595,0.95016664,3641.3,3640.5,0.54939]
[1718202835797,0.95016664,3641.3,3640.6,5.4936]
[1718202836296,2.74641,3641.2,3640.6,5.4936]
[1718202836602,0.95016664,3641.3,3640.6,5.4936]
[1718202836788,0.59385415,3641.3,3640.8,6.9319]
[1718202836972,0.59385415,3641.3,3640.9,6.93391044]
[1718202837175,2.74636,3641.2,3640.9,5.4931]
[1718202837497,2.74636,3641.2,3640.9,4.84786861]
[1718202837498,4.17993514,3641.0,3640.9,4.84786861]
[1718202837799,5.83093514,3641.0,3640.9,8.61e-06]
[1718202838298,8.83093514,3641.0,3640.9,8.61e-06]
[1718202838798,16.23362714,3641.0,3640.9,8.61e-06]
[1718202839095,8.83093514,3641.0,3640.9,8.61e-06]
[1718202839294,29.05225514,3641.0,3640.9,8.61e-06]
[1718202839598,30.51857314,3641.0,3640.9,8.61e-06]
[1718202839981,18.89907114,3641.0,3640.9,8.61e-06]
[1718202841108,12.12742514,3641.0,3640.9,8.61e-06]
[1718202841264,47.98471814,3641.0,3640.9,8.61e-06]
[1718202841596,2.74756,3639.6,3638.7,6.9319]
[1718202841762,1.43344514,3639.5,3638.7,6.9319]
[1718202841962,1.43344514,3639.5,3638.8,0.968025]
[1718202842176,3.75,3641.4,3638.8,0.968025]
[1718202842177,3.0,3640.1,3638.8,0.968025]
[1718202842401,2.74661,3640.9,3639.8,1.959]
[1718202842600,1.43344514,3640.8,3639.9,5.4947]
[1718202842801,1.43344514,3640.8,3640.0,0.74537]
[1718202843127,1.43344514,3640.8,3640.1,5.4944]
[1718202843128,2.74674,3640.7,3640.1,5.4944]
[1718202843430,1.43344514,3640.6,3640.1,5.4944]
[1718202843722,2.74643,3641.1,3640.2,6.48303506]
[1718202843921,1.43344514,3641.0,3640.3,7.01720842]
[1718202844229,1.43344514,3641.0,3640.3,6.96228051]
[1718202845709,1.43344514,3641.0,3640.4,0.05492912]
[1718202845912,1.43344514,3641.0,3640.5,5.4938]
[1718202846125,1.43344514,3641.0,3640.6,0.05492913]
[1718202846319,1.43344514,3641.0,3640.7,6.04827291]
[1718202846493,1.43344514,3641.0,3640.7,5.4934]
[1718202850145,2.74657,3640.9,3640.7,5.4934]
[1718202850332,1.43344514,3640.8,3640.7,5.4934]
[1718202850543,4.43344514,3640.8,3640.7,5.4934]
[1718202852256,2.74634,3641.2,3640.7,6.04274]
[1718202852458,2.74634,3641.2,3640.8,0.05492798]
[1718202852757,2.74634,3641.2,3640.9,5.4931]
[1718202852948,1.43344514,3641.1,3640.9,5.4931]
[1718202854253,2.74649,3641.0,3640.9,5.4931]
[1718202854560,4.17993514,3641.0,3640.9,5.4931]
[1718202855461,9.05627714,3641.0,3640.9,5.4931]
[1718202855635,4.17993514,3641.0,3640.9,5.4931]
[1718202856158,1.43344514,3641.0,3640.9,5.4931]
[1718202856355,3.0,3641.2,3640.9,6.04241]
[1718202856557,1.43344514,3641.1,3640.9,6.04241]
[1718202858383,2.74573,3642.1,3641.1,2.74639]
[1718202858585,1.43344514,3642.0,3641.2,6.37158]
[1718202859147,1.43344514,3642.0,3641.3,2.74624]
[1718202859386,1.43344514,3642.0,3641.4,5.4924]
[1718202860666,2.74584,3641.9,3641.4,5.4924]
[1718202860869,1.43344514,3641.8,3641.4,5.4924]
[1718202861662,2.74598,3641.7,3641.4,5.4924]
[1718202861866,2.74612,3641.5,3641.4,5.4924]
[1718202862072,7.17956514,3641.5,3641.4,5.4924]
[1718202862271,17.20904414,3641.5,3641.4,5.4924]
[1718202862557,7.17956514,3641.5,3641.4,5.4924]
[1718202862751,11.73956514,3641.5,3641.4,5.4924]
[1718202864290,9.50352114,3641.5,3641.4,5.4924]
[1718202864655,7.17956514,3641.5,3641.4,5.4924]
[1718202864969,2.74589,3641.8,3641.4,6.04164]
[1718202865169,1.43344514,3641.7,3641.4,6.04164]
[1718202866208,2.74566,3642.1,3641.5,0.05491831]
[1718202866357,1.43344514,3642.0,3641.6,5.4921]
[1718202867383,1.43344514,3642.0,3641.7,0.05491434]
[1718202867594,2.74566,3642.1,3641.8,5.4918]
[1718202867784,4.17910514,3642.1,3641.8,5.4918]
[1718202869168,7.49,3642.9,3641.8,5.4918]
[1718202869169,2.74546,3642.4,3641.8,5.4918]
[1718202869368,10.44734326,3644.3,3641.8,5.4918]
[1718202869369,2.74524,3642.7,3641.9,0.05490899]
[1718202869603,2.74524,3642.7,3642.0,5.4915]
[1718202869604,4.17868514,3642.7,3642.0,5.4915]
[1718202869793,4.17868514,3642.7,3642.1,0.8841216]
[1718202870100,4.17868514,3642.7,3642.2,5.4912]
[1718202870306,4.17868514,3642.7,3642.3,0.0549037]
[1718202870504,4.17868514,3642.7,3642.4,5.4909]
[1718202871292,3.0,3643.1,3642.4,5.4909]
[1718202871624,2.74525,3642.7,3642.4,5.4909]
[1718202871823,3.0,3643.2,3642.4,5.4909]
[1718202871824,2.74536,3642.5,3642.4,5.4909]
[1718202872106,4.17880514,3642.5,3642.4,5.4909]
[1718202873053,7.17880514,3642.5,3642.4,5.4909]
[1718202874185,12.78391114,3642.5,3642.4,5.4909]
[1718202874467,12.50737014,3642.5,3642.4,5.4909]
[1718202874650,11.77656814,3642.5,3642.4,5.4909]
[1718202875432,16.72292814,3642.5,3642.4,5.4909]
[1718202878571,11.77656814,3642.5,3642.4,5.4909]
[1718202878864,7.17880514,3642.5,3642.4,5.4909]
[1718202880223,10.60099114,3642.5,3642.4,5.4909]
[1718202881361,13.34635114,3642.5,3642.4,5.4909]
[1718202882019,14.99735114,3642.5,3642.4,5.4909]
[1718202882226,15.54735114,3642.5,3642.4,5.4909]
[1718202882637,18.29271114,3642.5,3642.4,5.4909]
[1718202883245,18.76732992,3642.5,3642.4,5.4909]
[1718202883460,18.29271114,3642.5,3642.4,5.4909]
[1718202884664,15.54735114,3642.5,3642.4,5.4909]
[1718202885238,18.29271114,3642.5,3642.4,5.4909]
[1718202885441,2.74634,3641.2,3641.1,14.7116]
[1718202885657,2.74634,3641.2,3641.1,7.2216]
[1718202886175,2.74634,3641.2,3641.1,12.7144]
[1718202887931,4.651,3642.4,3641.1,12.7144]
[1718202888202,2.74599,3641.7,3641.2,1.32635591]
[1718202888473,4.17896514,3642.3,3641.3,5.4925]
[1718202888474,2.74577,3642.0,3641.3,5.4925]
[1718202888679,4.17921514,3642.0,3641.3,5.4925]
[1718202889040,4.17921514,3642.0,3641.4,0.05491385]
[1718202889245,4.17921514,3642.0,3641.5,5.4922]
[1718202889438,4.17921514,3642.0,3641.6,0.55471139]
[1718202889809,2.74577,3642.0,3641.7,5.54681386]
[1718202891643,2.74555,3642.3,3641.8,0.05491342]
[1718202891842,3.0,3642.2,3641.9,5.4916]
[1718202893142,3.0,3642.2,3641.9,13.38063114]
[1718202893943,2.74566,3642.1,3641.9,13.38063114]
[1718202894167,2.74566,3642.1,3641.9,12.776]
[1718202894371,4.17910514,3642.1,3641.9,5.4916]
[1718202897290,1.43344514,3642.0,3641.9,5.4916]
[1718202897776,6.00852314,3642.0,3641.9,5.4916]
[1718202897945,8.10464214,3642.0,3641.9,5.4916]
[1718202900381,7.48505214,3642.0,3641.9,5.4916]
[1718202900582,6.48875814,3642.0,3641.9,5.4916]
[1718202901242,4.43344514,3642.0,3641.9,5.4916]
[1718202901446,11.73346714,3642.0,3641.9,5.4916]
[1718202901879,10.72404314,3642.0,3641.9,5.4916]
[1718202902082,4.43344514,3642.0,3641.9,5.4916]
[1718202902515,8.50796114,3642.0,3641.9,5.4916]
[1718202903642,8.98258934,3642.0,3641.9,5.4916]
[1718202903859,10.30109587,3642.0,3641.9,5.4916]
[1718202904170,8.98261445,3642.0,3641.9,5.4916]
[1718202905706,8.50796114,3642.0,3641.9,5.4916]
[1718202906006,10.15696114,3642.0,3641.9,5.4916]
[1718202906306,10.15696114,3642.0,3640.8,7.1128]
[1718202906307,2.74657,3640.9,3640.8,7.1128]
[1718202906668,2.74657,3640.9,3640.8,12.606]
[1718202907226,2.74657,3640.9,3640.8,5.4932]
[1718202908333,2.74622,3641.4,3640.8,5.4932]
[1718202908610,2.74657,3640.9,3640.8,5.4932]
[1718202908817,2.74657,3640.9,3640.8,12.8204]
[1718202909031,2.74622,3641.4,3640.8,12.8204]
[1718202909173,2.7464,3641.2,3640.8,12.8204]
[1718202909379,2.7464,3641.2,3640.9,1.28204]
[1718202909598,2.7464,3641.2,3641.0,5.493]
[1718202909975,2.74614,3641.5,3641.0,5.493]
[1718202910202,3.0,3641.4,3641.1,0.05492111]
[1718202910401,4.17958514,3641.5,3641.2,5.4927]
[1718202911093,2.74614,3641.5,3641.2,5.4927]
[1718202911291,4.17958514,3641.5,3641.2,5.4927]
[1718202911678,3.0,3641.9,3641.2,5.4927]
[1718202911679,2.74627,3641.3,3641.2,5.4927]
[1718202911988,4.17971514,3641.3,3641.2,5.4927]
[1718202913222,7.26068114,3641.3,3641.2,5.4927]
[1718202913580,4.17971514,3641.3,3641.2,5.4927]
[1718202913977,8.03868114,3641.3,3641.2,5.4927]
[1718202914373,11.03868114,3641.3,3641.2,5.4927]
[1718202915477,13.78495114,3641.3,3641.2,5.4927]
[1718202916374,7.17971514,3641.3,3641.2,5.4927]
[1718202917196,9.85306914,3641.3,3641.2,5.4927]
[1718202917418,12.59933914,3641.3,3641.2,5.4927]
[1718202917636,9.85306914,3641.3,3641.2,5.4927]
[1718202918644,12.59933914,3641.3,3641.2,5.4927]
[1718202919025,19.74993914,3641.3,3641.2,5.4927]
[1718202919250,21.39893914,3641.3,3641.2,5.4927]
[1718202919746,23.19253805,3641.3,3641.2,5.4927]
[1718202920317,2.74717,3640.1,3640.0,7.49]
[1718202921544,2.74717,3640.1,3640.0,6.97923]
[1718202924442,2.74717,3640.1,3640.0,5.4944]
[1718202925336,4.18061514,3640.1,3640.0,5.4944]
[1718202925536,7.18061514,3640.1,3640.0,5.4944]
[1718202925858,9.92778514,3640.1,3640.0,5.4944]
[1718202927872,31.24448014,3640.1,3640.0,5.4944]
[1718202928367,33.99165014,3640.1,3640.0,5.4944]
[1718202929080,28.23954314,3640.1,3640.0,5.4944]
[1718202929448,28.78954314,3640.1,3640.0,5.4944]
[1718202931837,35.94894314,3640.1,3640.0,5.4944]
[1718202932249,33.67675061,3640.1,3638.4,14.9255]
[1718202932452,33.67675061,3640.1,3638.5,0.0549587]
[1718202932453,1.649,3639.8,3638.5,0.0549587]
[1718202932728,3.0,3639.8,3638.6,0.74904587]
[1718202932869,2.74762,3639.6,3638.8,7.3748]
[1718202933226,2.74762,3639.6,3638.7,0.05494927]
[1718202933227,3.0,3640.0,3639.3,2.74777]
[1718202933434,2.74704,3640.3,3639.5,7.3721]
[1718202933574,4.18048514,3640.3,3639.6,5.4951]
[1718202933922,4.18048514,3640.3,3639.7,0.05493985]
[1718202934063,4.18048514,3640.3,3639.8,6.84195385]
[1718202934465,2.74679,3640.7,3639.8,6.84195385]
[1718202934695,1.43344514,3640.6,3639.8,6.84195385]
[1718202936069,4.43344514,3640.6,3639.8,6.84195385]
[1718202936285,4.43344514,3640.6,3639.8,6.78701399]
[1718202936486,4.43344514,3640.6,3639.9,1.00839]
[1718202936687,4.43344514,3640.6,3640.0,5.4945]
[1718202936893,4.43344514,3640.6,3640.1,0.05493561]
[1718202937120,4.43344514,3640.6,3640.2,5.4942]
[1718202938342,2.74689,3640.5,3640.2,5.4942]
[1718202938484,2.74702,3640.3,3640.2,5.4942]
[1718202938689,4.18046514,3640.3,3640.2,5.4942]
[1718202939323,3.0,3640.6,3640.2,6.04362]
[1718202939496,4.43344514,3640.6,3640.2,6.04362]
[1718202940022,2.74688,3640.5,3640.2,6.04362]
[1718202940204,2.74702,3640.3,3640.2,5.4942]
[1718202940384,4.18046514,3640.3,3640.2,5.4942]
[1718202940586,7.18046514,3640.3,3640.2,5.4942]
[1718202940887,4.18046514,3640.3,3640.2,5.4942]
[1718202941093,13.47321214,3640.3,3640.2,5.4942]
[1718202941308,7.18046514,3640.3,3640.2,5.4942]
[1718202941623,26.28621914,3640.3,3640.2,5.4942]
[1718202941781,37.67107614,3640.3,3640.2,5.4942]
[1718202941981,11.57648514,3640.3,3640.2,5.4942]
[1718202942217,38.47140114,3640.3,3640.2,5.4942]
[1718202942416,39.10268373,3640.3,3640.2,5.4942]
[1718202942728,39.65268373,3640.3,3640.2,5.4942]
[1718202945285,38.3337816,3640.3,3640.2,5.4942]
[1718202945788,41.08079542,3640.3,3640.2,5.4942]
[1718202946216,41.08079542,3640.3,3638.9,7.49]
[1718202946217,2.748,3639.0,3638.9,7.49]
[1718202946430,4.18144514,3639.0,3638.7,6.9696]
[1718202946900,4.18144514,3639.0,3638.8,5.4962]
[1718202947903,1.43344514,3638.9,3638.8,5.4962]
[1718202949120,6.11968014,3638.9,3638.8,5.4962]
[1718202949419,4.42415414,3638.9,3638.8,5.4962]
[1718202950012,6.07315414,3638.9,3638.8,5.4962]
[1718202950186,7.42415414,3638.9,3638.8,5.4962]
[1718202951591,4.43344514,3638.9,3638.8,5.4962]
[1718202952498,4.43344514,3638.9,3638.8,12.6876]
[1718202952499,3.0,3638.9,3638.8,12.6876]
[1718202952695,2.74767,3639.5,3638.8,12.6876]
[1718202952944,2.74781,3639.3,3638.8,13.95636]
[1718202953213,3.0,3639.2,3638.8,13.95636]
[1718202953992,4.18138514,3639.1,3638.8,13.95636]
[1718202954189,3.0,3639.0,3638.8,13.95636]
[1718202954393,4.43344514,3639.0,3638.8,13.95636]
[1718202957333,4.06659523,3640.0,3638.9,1.395636]
[1718202957334,2.74751,3639.7,3638.9,1.395636]
[1718202957524,1.43344514,3639.6,3639.0,5.496]
[1718202957783,4.43344514,3639.6,3639.0,5.496]
[1718202958056,1.43344514,3639.6,3639.0,5.496]
[1718202958220,2.74782,3639.3,3639.0,5.496]
[1718202958416,2.74727,3640.0,3639.1,7.128]
[1718202958628,2.74727,3640.0,3639.2,5.4957]
[1718202959302,2.74727,3640.0,3639.3,0.05494477]
[1718202959534,2.74727,3640.0,3639.4,5.4954]
[1718202963534,1.43344514,3639.9,3639.4,5.4954]
[1718202964526,2.74742,3639.8,3639.4,5.4954]
[1718202964727,1.43344514,3639.7,3639.4,5.4954]
[1718202964946,2.74755,3639.6,3639.4,5.4954]
[1718202965232,1.43344514,3639.5,3639.4,5.4954]
[1718202966131,11.68963614,3639.5,3639.4,5.4954]
[1718202966337,10.68113614,3639.5,3639.4,5.4954]
[1718202966927,4.43344514,3639.5,3639.4,5.4954]
[1718202967581,1.649,3640.1,3639.5,7.2851]
[1718202967582,2.74733,3639.9,3639.5,7.2851]
[1718202967894,1.43344514,3639.8,3639.6,5.4951]
[1718202968057,4.43344514,3639.8,3639.6,5.4951]
[1718202968442,1.43344514,3639.8,3639.6,5.4951]
[1718202969279,2.74747,3639.7,3639.6,5.4951]
[1718202969460,4.18091514,3639.7,3639.6,5.4951]
[1718202970073,2.74723,3640.1,3639.6,5.4951]
[1718202970273,4.43344514,3640.0,3639.6,5.4951]
[1718202970478,1.43344514,3640.0,3639.6,6.04461]
[1718202971990,7.1736,3640.8,3639.6,6.04461]
[1718202971991,1.31908895,3641.6,3641.2,2.74632]
[1718202972146,1.31908895,3641.6,3641.4,2.74619]
[1718202972516,1.43635068,3642.1,3641.5,5.54711509]
[1718202972650,2.74551,3642.4,3641.5,5.54711509]
[1718202973268,2.74551,3642.4,3641.6,0.05491099]
[1718202973571,2.74551,3642.4,3641.7,5.4919]
[1718202973970,2.74561,3642.2,3641.7,5.4919]
[1718202974164,1.43344514,3642.1,3641.7,5.4919]
[1718202975013,4.43344514,3642.1,3641.7,5.4919]
[1718202975220,12.633408,3642.0,3641.7,5.4919]
[1718202975363,1.43344514,3642.0,3641.7,5.4919]
[1718202977903,4.17924514,3642.0,3641.7,5.4919]
[1718202981998,2.7458,3642.0,3641.7,5.4919]
[1718202982207,2.74554,3642.3,3641.8,0.05491277]
[1718202982410,2.74554,3642.3,3641.9,6.04628128]
[1718202982639,2.74554,3642.3,3642.0,0.05490866]
[1718202982972,2.74554,3642.3,3642.1,5.4913]
[1718202983098,10.94501695,3643.6,3642.1,5.4913]
[1718202983099,2.74525,3642.7,3642.2,6.9178]
[1718202983275,2.74525,3642.7,3642.3,5.491]
[1718202984529,1.649,3643.4,3642.3,5.491]
[1718202984530,2.74536,3642.5,3642.3,5.491]
[1718202986346,2.008,3642.4,3642.3,5.491]
[1718202986553,2.74536,3642.5,3642.3,5.491]
[1718202986957,4.17880514,3642.5,3642.3,5.491]
[1718202987255,1.43344514,3642.4,3642.3,5.491]
[1718202987630,2.74536,3642.5,3642.3,5.491]
[1718202990263,2.74515,3642.8,3642.3,6.0401]
[1718202990456,3.0,3642.7,3642.3,6.0401]
[1718202991965,2.7453,3642.6,3642.3,5.491]
[1718202995293,2.3333,3642.6,3642.3,5.491]
[1718202998325,3.76674514,3642.6,3642.3,5.491]
[1718203000584,2.3333,3642.6,3642.3,5.491]
[1718203001993,2.74512,3642.9,3642.5,5.4907]
[1718203003391,1.3181046,3643.2,3642.6,6.93990076]
[1718203003648,1.43344514,3643.1,3642.7,2.74519]
[1718203003797,2.745,3643.0,3642.7,2.74519]
[1718203004150,4.17844514,3643.0,3642.7,2.74519]
[1718203006097,2.74514,3642.8,3642.7,2.74519]
[1718203006292,5.49668974,3642.8,3642.7,2.74519]
[1718203006533,13.34270835,3642.8,3642.7,2.74519]
[1718203006729,10.34270835,3642.8,3642.7,2.74519]
[1718203007245,10.75679478,3642.8,3642.7,2.74519]
[1718203007838,5.97125778,3642.8,3642.7,2.74519]
[1718203008326,12.39409814,3642.8,3642.7,2.74519]
[1718203008509,14.18673283,3642.8,3642.7,2.74519]
[1718203008934,13.59819383,3642.8,3642.7,2.74519]
[1718203009117,8.97121983,3642.8,3642.7,2.74519]
[1718203009460,8.49670962,3642.8,3642.7,2.74519]
[1718203009815,12.21759262,3642.8,3642.7,2.74519]
[1718203010003,12.69210283,3642.8,3642.7,2.74519]
[1718203010511,11.37397835,3642.8,3642.7,2.74519]
[1718203012443,7.65309535,3642.8,3642.7,2.74519]
[1718203012658,7.17858514,3642.8,3642.7,2.74519]
[1718203012835,9.77948814,3642.8,3642.7,2.74519]
[1718203013013,7.65309535,3642.8,3642.7,2.74519]
[1718203013220,8.49667837,3642.8,3642.7,2.74519]
[1718203013460,7.06323323,3642.8,3642.7,2.74519]
[1718203013660,5.74514,3642.8,3642.7,2.74519]
[1718203013945,7.06323323,3642.8,3642.7,2.74519]
[1718203014941,5.74514,3642.8,3642.7,2.74519]
[1718203016658,7.17858514,3642.8,3642.7,2.74519]
[1718203016836,15.27671637,3642.8,3642.7,2.74519]
[1718203017140,15.75122658,3642.8,3642.7,2.74519]
[1718203017358,13.95862314,3642.8,3642.7,2.74519]
[1718203018154,16.70376314,3642.8,3642.7,2.74519]
[1718203019021,13.95862314,3642.8,3642.7,2.74519]
[1718203019510,13.40563414,3642.8,3642.7,2.74519]
[1718203020765,16.15077414,3642.8,3642.7,2.74519]
[1718203021618,16.62527297,3642.8,3642.7,2.74519]
[1718203022421,16.62531275,3642.8,3642.7,2.74519]
[1718203023046,14.83851602,3642.8,3642.7,2.74519]
[1718203023292,17.58365602,3642.8,3642.7,2.74519]
[1718203023694,14.83851602,3642.8,3642.7,2.74519]
[1718203024004,17.58365602,3642.8,3642.7,2.74519]